Cogmind - Beta 16 @@@ ROGUE MODE // 2025.11.28 @ 22:46:08 Player: 0_0 Result: Destroyed self with Rocket Launcher Performance ------------- Evolutions (1) 500 Regions Visited (3) 600 Robots Destroyed (17) 85 Value Destroyed (254) 254 Prototype IDs (2) 40 Alien Tech Used (0) 0 Bonus (0) 0 TOTAL SCORE: 1479 Bonus ------- None Cogmind --------- Core Integrity 0/400 Matter 285/300 Energy 265/265 System Corruption 0% Temperature Cool (0) Movement Core (250) Ox4 Location -9/Mines Parts ------- > --- POWER (2) -------- Improved Ion Engine > --- PROPULSION (2) --- (None) > --- UTILITY (3) ------ Visual Processing Unit Improved Targeting Computer > --- WEAPON (2) ------- Rocket Launcher Katana > --- INVENTORY (5) ---- Improved Terrain Scanner Targeting Computer Small Laser Light EM Pulse Cannon Mining Laser Peak State ------------ > --- POWER ------------ Ion Engine > --- PROPULSION ------- Cesium-ion Thruster Cesium-ion Thruster > --- UTILITY ---------- Visual Processing Unit Seismic Detector > --- WEAPON ----------- Katana Katana > --- INVENTORY -------- Cesium-ion Thruster Cesium-ion Thruster Small Storage Unit Small Laser Light EM Pulse Cannon [Rating: 17] Favorites ----------- Power Ion Engine Engine Ion Engine Propulsion Airjet Wheel Wheel Hover Unit Airjet Flight Unit Cesium-ion Thruster Utility Visual Processing Unit Device Seismic Detector Storage Small Storage Unit Processor Visual Processing Unit Weapon Katana Energy Gun Medium Laser Launcher Rocket Launcher Slashing Weapon Katana Build | -11 -10 -9 -9 ------- Run | Yrd Mat Mat Min Slots Evolved 2 | . . 2 . Power 1 | . . 1 . Propulsion . | . . . . Utility 1 | . . 1 . Weapon . | . . . . Parts Attached 23 | 6 2 10 5 Power 3 | 1 . 1 1 Engine 3 | 1 . 1 1 Core . | . . . . Reactor . | . . . . Propulsion 9 | 2 . 5 2 Treads . | . . . . Leg . | . . . . Wheel 2 | 2 . . . Hover 2 | . . . 2 Flight 5 | . . 5 . Utility 4 | 1 2 . 1 Device 1 | . 1 . . Storage 1 | 1 . . . Processor 2 | . 1 . 1 Hackware . | . . . . Protection . | . . . . Artifact . | . . . . Weapon 7 | 2 . 4 1 Energy Gun 3 | 2 . 1 . Energy Cannon . | . . . . Ballistic Gun . | . . . . Ballistic Cannon . | . . . . Launcher 1 | . . . 1 Special Weapon . | . . . . Impact Weapon . | . . . . Slashing Weapon 3 | . . 3 . Piercing Weapon . | . . . . Special Melee Weapon . | . . . . Unidentified Prototypes . | . . . . Parts Lost 11 | . . 9 2 Power 2 | . . 2 . Propulsion 6 | . . 4 2 Utility 1 | . . 1 . Weapon 2 | . . 2 . Highest Loss Streak 9 | . . 9 1 To Critical Strikes . | . . . . Average Backups 3 | 1 3 4 4 Power . | . . . . Propulsion . | . . 1 . Utility . | . . . 1 Weapon 2 | . 2 2 2 Tool/Special . | . . . . Unused Backups 6 | . . 2 4 Power . | . . . . Propulsion . | . . . . Utility 2 | . . . 2 Weapon 4 | . . 2 2 Tool/Special . | . . . . Average Slot Usage (%) 69 | . 97 65 58 Engine 8 | . 14 8 5 Wheel 7 | . 28 2 . Hover 6 | . . . 14 Flight 4 | . . 15 . Device 4 | . 8 7 . Storage 1 | . 5 . . Processor 13 | . 11 11 16 Energy Gun 10 | . 28 6 3 Launcher 3 | . . . 7 Slashing Weapon 9 | . . 14 11 Peak Build Rating 17 | 6 8 17 14 Average Rating 11 | 3 7 12 12 On Entrance 5 | . 6 8 9 Avg Prop Armor Cover (%) . | . . . . Naked Turns . | . . . . Heaviest Build 14 | 14 14 13 13 Greatest Support 26 | 26 26 26 16 Greatest Overweight (x) 4 | . . 1 4 Average Overweight (x) . | . . . . Largest Inventory Capacity 8 | 8 8 5 5 Average Capacity 5 | 6 6 5 5 Most Carried 5 | 5 5 5 5 Average Carried 3 | 1 3 4 4 Final Capacity 8 | 8 5 5 5 Final Carried 5 | 1 5 4 5 Class Distribution -------------------- 85% | Mutant 14% | Sprinter Dominant Class ---------------- Mutant | -10/Materials Sprinter | -9/Materials Mutant | -9/Mines Resources | -11 -10 -9 -9 ----------- Run | Yrd Mat Mat Min Matter Collected 398 | 204 23 113 58 Remotely . | . . . . Salvage Created 334 | . 34 219 81 Parts 24 | . 4 12 8 Haulers Intercepted . | . . . . Recyclers Shooed . | . . . . Parts Field Recycled . | . . . . Retrieved Matter . | . . . . Parts Self-Destructed . | . . . . Prevented . | . . . . Parts Restored . | . . . . Kills | -11 -10 -9 -9 ------- Run | Yrd Mat Mat Min Combat Hostiles Destroyed 15 | . 3 8 4 Melee 9 | . . 8 1 Guns 3 | . 3 . . AOE 3 | . . . 3 Classes Destroyed 6 | . 1 3 2 Worker 1 | . . 1 . Tunneler 1 | . . . 1 Swarmer 12 | . 3 6 3 Grunt 1 | . . 1 . Duelist 1 | . . 1 . Sentry 1 | . . . 1 Best Kill Streak 4 | . 3 4 2 Combat Bots Only 4 | . 3 4 2 Max Kills in Single Turn 2 | . 1 1 2 Gunslinging . | . . . . Exploded 2 | . . . 2 Melee 1 | . . 1 1 Uniques/NPCs Destroyed . | . . . . Combat | -11 -10 -9 -9 -------- Run | Yrd Mat Mat Min Hostile Shots Fired 124 | . 11 94 19 Missed 36 | . 3 26 7 Hits 88 | . 8 68 12 Melee 4 | . . 4 . Projectile 84 | . 8 64 12 Critical Strikes 2 | . . . 2 Damage Taken 952 | . 58 632 262 Core 407 | . 7 268 132 Absorbed by Shields . | . . . . Core Remaining (%) 98 | 100 97 . . Volleys Fired 7 | . 4 . 3 Largest 2 | . 2 . 1 Hottest 100 | . 100 . 33 Shots Fired 11 | . 8 . 3 Gun 8 | . 8 . . Cannon . | . . . . Launcher 3 | . . . 3 Special . | . . . . Kinetic . | . . . . Thermal 8 | . 8 . . Explosive 3 | . . . 3 Electromagnetic . | . . . . Robot Hit Streak 2 | . 2 . 1 Robot Miss Streak 3 | . 3 . 1 Penetration Max . | . . . . Secondary Targets 1 | . 1 . . Max Gunslinging Chain 1 | . 1 . . Shots Hit Robots 24 | . 4 16 4 Core Hits 17 | . 3 9 5 Critical Kills . | . . . . Critical Parts Destroyed . | . . . . Critical Strikes 1 | . . 1 . Sever 1 | . . 1 . Melee Attacks 28 | . . 24 4 Impact . | . . . . Slashing 28 | . . 24 4 Piercing . | . . . . Sneak Attacks 2 | . . 1 1 Combat Hostiles . | . . . . Follow-up Attacks 4 | . . 4 . Damage Inflicted 964 | . 49 555 360 Guns 49 | . 49 . . Cannons . | . . . . Explosions 228 | . . . 228 Melee 687 | . . 555 132 Ramming . | . . . . Kinetic . | . . . . Thermal 49 | . 49 . . Explosive 228 | . . . 228 Electromagnetic . | . . . . Impact . | . . . . Slashing 687 | . . 555 132 Piercing . | . . . . Highest Corruption . | . . . . Average Corruption . | . . . . Corruption Purged . | . . . . Corruption Blocked . | . . . . Overload Shots . | . . . . Overflow Damage 73 | . . 19 54 Projectiles . | . . . . Explosions 27 | . . . 27 Melee 46 | . . 19 27 Knockbacks . | . . . . Impact . | . . . . Kinetic . | . . . . Secondary . | . . . . Self-Inflicted Damage 106 | . . . 106 Shots 3 | . . . 3 Rammed . | . . . . Targets Rammed . | . . . . Kicked . | . . . . Crushed . | . . . . Highest Temperature 156 | . 156 . 1 Average Temperature 77 | . 81 . 1 Received Heat Transfer 57 | . . 12 45 Siege Activations . | . . . . Martial Activations . | . . . . Shielding Activations . | . . . . Robots Disrupted . | . . . . Combat Hostiles . | . . . . Robots Corrupted . | . . . . Combat Hostiles . | . . . . Parts Fried . | . . . . Impact Corruptions . | . . . . Robots Melted . | . . . . Combat Hostiles . | . . . . Parts Melted . | . . . . Heat Transferred 148 | . 148 . . Parts Sabotaged . | . . . . Parts Stolen . | . . . . Parts Stripped . | . . . . Power Chain Reactions . | . . . . Alert | -11 -10 -9 -9 ------- Run | Yrd Mat Mat Min Maximum Alert Level 1 | . . 1 . Low Security (%) 95 | 100 100 85 100 Level 1 4 | . . 14 . Level 2 . | . . . . Level 3 . | . . . . Level 4 . | . . . . Level 5 . | . . . . High Security . | . . . . Max Security . | . . . . Peak Influence 295 | . 71 295 114 Initial 114 | . . 16 114 Average 47 | . 20 92 38 Influence Increases 652 | . 71 443 138 Destroy 0b10 Robot/C 300 | . 60 160 80 Destroy 0b10 Robot/NC 10 | . . 5 5 Destroy Leader 50 | . 10 30 10 Successful Hack 8 | . . 8 . Destroy Structure 29 | . 1 . 28 Partial Spotted 60 | . . 60 . Lose Combat Pursuer 195 | . . 180 15 Influence Decreases 582 | . 30 189 363 Entered New Map 206 | . . 25 181 Time Decay 226 | . 30 74 122 Lost Part 110 | . . 90 20 Lost Ally 40 | . . . 40 Squads Dispatched 1 | . . 1 . Investigation 1 | . . 1 . Extermination . | . . . . Reinforcement . | . . . . Assault . | . . . . Garrison . | . . . . Intercept . | . . . . Searches Triggered . | . . . . Construction Impeded . | . . . . Haulers Reinforced . | . . . . Active Scanning Responses . | . . . . Cargo Convoy Interrupts . | . . . . Stealth | -11 -10 -9 -9 --------- Run | Yrd Mat Mat Min Distress Signals 4 | . 1 3 . Communications Jammed . | . . . . Distress Signals . | . . . . Times Spotted 62 | . 7 26 29 Peak Tracking Total 20 | . 5 10 20 Tactical Retreats 7 | . . 4 3 Traps | -11 -10 -9 -9 ------- Run | Yrd Mat Mat Min Traps Triggered 1 | . . 1 . Indirectly . | . . . . Trap Hack Attempts . | . . . . Triggered . | . . . . Disarmed . | . . . . Reprogrammed . | . . . . Reused . | . . . . Traps Extracted . | . . . . Installed . | . . . . Triggered . | . . . . Machines | -11 -10 -9 -9 ---------- Run | Yrd Mat Mat Min Machines Disabled 2 | . . . 2 Max in Single Turn 2 | . . . 2 Machines Repaired . | . . . . Machines Dismantled . | . . . . Machines Sabotaged . | . . . . Overloaded Fab Kills . | . . . . Hacking | -11 -10 -9 -9 --------- Run | Yrd Mat Mat Min Machines Accessed 4 | . 2 2 . Terminals 3 | . 2 1 . Fabricators . | . . . . Repair Stations . | . . . . Recycling Units 1 | . . 1 . Scanalyzers . | . . . . Garrison Access . | . . . . Total Hacks 7 | . 3 4 . Successful 5 | . 1 4 . Failed 2 | . 2 . . Catastrophic . | . . . . Database Lockouts . | . . . . Manual 1 | . . 1 . Terminals 5 | . 3 2 . Fabricators . | . . . . Repair Stations . | . . . . Recycling Units 2 | . . 2 . Scanalyzers . | . . . . Garrison Access . | . . . . Terminal Hacks 3 | . 1 2 . Robot Analysis 1 | . . 1 . Prototype ID Bank 1 | . . 1 . Locate Traps 1 | . 1 . . Fabricator Hacks . | . . . . Repair Station Hacks . | . . . . Recycling Unit Hacks 1 | . . 1 . Process 1 | . . 1 . Scanalyzer . | . . . . Garrison Access Hacks . | . . . . Unauthorized Hacks 1 | . . 1 . Terminals . | . . . . Fabricators . | . . . . Repair Stations . | . . . . Recycling Units 1 | . . 1 . Recyclers 1 | . . 1 . Scanalyzers . | . . . . Garrison Access . | . . . . Data Cores Recovered . | . . . . Used . | . . . . Hacking Detections 1 | . 1 . . Full Trace Events . | . . . . Feedback Events . | . . . . Feedback Blocked . | . . . . Robot Schematics Acquired . | . . . . Robots Built . | . . . . Authchips . | . . . . Time . | . . . . Total Robot Build Rating . | . . . . Part Schematics Acquired . | . . . . Parts Built . | . . . . Authchips . | . . . . Time . | . . . . Total Part Build Rating . | . . . . Part Studies Acquired . | . . . . Parts Repaired . | . . . . Time . | . . . . Parts Recycled . | . . . . Recycled Matter . | . . . . Retrieved Matter . | . . . . Retrieved Components . | . . . . Parts Scanalyzed . | . . . . Part Schematics Acquired . | . . . . Parts Damaged . | . . . . Bothacking | -11 -10 -9 -9 ------------ Run | Yrd Mat Mat Min Used RIF Installer . | . . . . Robots Hacked . | . . . . Non-combat . | . . . . Combat . | . . . . Robot Hacks Applied . | . . . . Relay Couplers Released . | . . . . Fabnet Peak Effective % . | . . . . Robots Rewired . | . . . . Allies Hacked . | . . . . Hacks Repelled . | . . . . Allies | -11 -10 -9 -9 -------- Run | Yrd Mat Mat Min Total Allies 2 | . . . 2 Largest Group 2 | . . . 2 Highest-Rated Group 62 | . . . 62 Highest-Rated Ally 31 | . . . 31 Total Orders . | . . . . Ally Attacks 5 | . . . 5 Total Damage 63 | . . . 63 Kills 1 | . . . 1 Allies Corrupted . | . . . . Allies Melted . | . . . . Intel | -11 -10 -9 -9 ------- Run | Yrd Mat Mat Min Active Infowar (turns) 595 | . 124 188 283 Optics 595 | . 124 188 283 Seismic 207 | . 89 118 . Robot Analysis Total 1 | . . 1 . Derelict Logs Recovered 1 | . . . 1 Drone Launches . | . . . . Drone Recoveries . | . . . . Exploration | -11 -10 -9 -9 ------------- Run | Yrd Mat Mat Min Turns Passed 656 | 42 143 188 283 Spaces Moved 764 | 42 133 297 292 Core 34 | 19 . 3 12 Treads . | . . . . Legs . | . . . . Wheels 169 | 23 133 13 . Hover 280 | . . . 280 Flight 281 | . . 281 . Fastest Speed 32 | 50 90 32 56 Average Speed 66 | 71 90 36 84 Slowest Speed 250 | 90 90 115 250 Overloaded Moves . | . . . . Propulsion Burnouts . | . . . . Robots Hopped . | . . . . Potential Cave-ins . | . . . . Cave-ins Triggered . | . . . . Exploration Rate (%) 29 | 4 26 31 58 Regions Visited 3 Branch Regions 1 Pre-discovered Areas . | . . . . Known Exits Taken . | . . . . Unknown Exits Taken 3 | 1 1 1 . Scrap Searched 1 | . . . 1 Spaces Dug . | . . . . Terrain Destroyed 28 | . . . 28 Melee . | . . . . Projectile . | . . . . AOE 28 | . . . 28 Terrain Rammed . | . . . . Walls Destroyed . | . . . . Machines Disabled . | . . . . Actions | -11 -10 -9 -9 --------- Run | Yrd Mat Mat Min Total 866 | 53 147 346 320 Wait 23 | . 4 7 12 Move 761 | 41 132 296 292 Hop . | . . . . Pick Up 21 | 6 5 7 3 Fast Attach 8 | 1 . 5 2 Attach 13 | 5 1 5 2 Detach . | . . . . Swap 2 | . 1 . 1 Drop 8 | . . 7 1 Fire 7 | . 4 . 3 Melee 23 | . . 19 4 Ram . | . . . . Kick . | . . . . Crush . | . . . . Escape Stasis . | . . . . Rewire . | . . . . Trap . | . . . . Miscellaneous . | . . . . Route ------- -11/Scrapyard -10/Materials -9/Materials (discovered 2 exits: [*Min] / [*Sto]) -9/Mines History --------- Turn | Location | Event 3 | -11/Scrapyard | Discovered new exit (range 16) 43 | -11/Scrapyard | Entered Materials 179 | -10/Materials | Discovered new exit (range 9) 186 | -10/Materials | Entered another Materials area 186 | -9/Materials | Evolved 2 slots: Power x1, Utility x1 321 | -9/Materials | Core integrity fell below 50% 344 | -9/Materials | Discovered new exit (range 3) 372 | -9/Materials | Discovered new exit (range 7) 374 | -9/Materials | Entered Mines 375 | -9/Mines | Assembled infested the area 381 | -9/Mines | Lost 9 parts (2p4n1u2w) 420 | -9/Mines | Learned 4 Materials zone layouts 452 | -9/Mines | Received a Rocket Launcher from a helpful Derelict 497 | -9/Mines | Joined a pair of Derelicts in attacking an 0b10 outpost 507 | -9/Mines | Core integrity fell below 20% 592 | -9/Mines | Build established: Mutant 657 | -9/Mines | Destroyed self with Rocket Launcher Last Messages --------------- 00501_ The unstable cave ceiling collapses. 00503_ Airjet destroyed. 00506_ Critical hit (Burn: +37). 00507_ Y-45 Defender destroyed. 00509_ Acquired 6 matter. 00510_ Acquired Imp. Ion Engine. 00514_ Acquired Imp. Targeting Computer. 00544_ K-01 Serf collects debris. 00572_ Searching scrap... 00572_ Found Hcp. Storage Unit. 00572_ Found 47 Matter. 00573_ Acquired 20 matter. 00625_ S-10 Pest destroyed. 00625_ Destroyed Lgt. Ion Engine. 00625_ S-10 Pest destroyed. 00625_ Airjet destroyed. 00625_ Destroyed Airjet. 00642_ Acquired 2 matter. 00642_ K-01 Serf collects debris. 00657_ S-10 Pest destroyed. Map ----- +----------------------------------------------------+ | ?????????????????# #???# #???????????????????????? | | ?????????????????# ##### #???????????????????????? | | #????????????????# #???????????????????????? | | ?????????????#### #######???????????????????????? | | ????????????## #?????????????????????????????? | | ???????????## ! ##????????????????????????????? | | ???????????# ]#????????????????????????????? | | ############ ##????????????????????????????? | | ##?????????????????????????????? | | ##### ######## ##?????????????????????????????? | | #???# #??????## ##????????????????????????????? | | #???# ##??????## #????????????????????????????? | | ##### ####????## #???????????????????????????? | | #?????## #???????????????????????????? | | ##### #?????#####???????????????????????????? | | #???### #?????????????????????????????????????? | | ???????# #????????????###?????????????????????? | | ###????? ??????????# ?????????????????????? | | ##????# #????????# #?????????????????????? | | ##???? ##????????# #?????????????????????? | | #???? ##?????????# #?????????????????????? | | #????? #??????????#* ##???????????????????? | | ##??? #??????????#% #???????????????????? | | ? ##???######## ##??????????????????? | | #???## # #??????????????????? | | #???# % @ #??????????????????? | | ## ##???# #### #??????????????? | | # #?? ##????## #??# #??????????????? | | ## #??? #??????# #?? ##### #??????????????? | | #### #???????????## ##?? #????????????????????? | | ???# #????#####???# #??? ##????????????????????? | | ???# ##???? #???# #??? #?????????????????????? | | ???# ##????# ##### #??# #?????????????????????? | | ???# #????# #??# #?????????????????????? | | ??## #????# #######??# #?????????????????????? | | ?## #???## ##??????# ??????????????????????? | | ## ##### #??????# ??????????????????????? | | #??????# ??????????????????????? | | !% ##### #??????# $??????????????????????? | | ##???# #??????# ??????????????????????? | | ##????# #??????? ??????????????????????? | | ##?????## #???????##??????????????????????? | | ##???????####???????????????????????????????? | | ######???????????????????????????????????????????? | | ?????????????????????????????????????????????????? | | ?????????????????????????????????????????????????? | | ?????????????????????????????????????????????????? | | ?????????????????????????????????????????????????? | | ?????????????????????????????????????????????????? | | ?????????????????????????????????????????????????? | +----------------------------------------------------+ Best States ------------- Heat Dissipation 28 Energy Generation 15 Energy Capacity 275 Matter Stores 300 Matter Capacity 300 Sight Range 18 Terrain Scan Density 10 Evasion (%) 63 Targeting Accuracy 6 Item Schematics ----------------- None Robot Schematics ------------------ None Fabricated ------------ Nothing Repaired ---------- Nothing Studied --------- None Alien Tech Used ----------------- None Achievements -------------- Slippery One Challenges ------------ None Game ------ Seed CompanionMappingBoomstick Manual? 0 Play Time 00:14:29 Cumulative 19.6 hours Start 2025.11.28 @ 22:35:10 End 2025.11.28 @ 22:46:08 Sessions 1 Manual Loads 0 Difficulty Rogue Special Mode None Game No. 45 Rogue 45 Adventurer 0 Explorer 0 Win Type - Total 0 Types 0/0/0/0/0/0/0/0/0/0 Lore% 29 Gallery% 18 Achievement% 13 Wizard Run 0 Options --------- Layout 1 ASCII 0 Keyboard 0 Movement Mouse Keybinds 0 Fullscreen 1 Font 32/SmallcapsGlow Map View 77x35 Zoom Use 0% Tactical HUD 1 Map Filters NONE Filters NONE Steam 1 RUN: 021486b6-61bb-403b-878f-74a40bdadabd